fUSD/lending_fUSD_20241202
["ID","MTS","AMOUNT","RATE_DAILY","PERIOD"]
[343978859,1733168239606,-500.0,0.00036372,120]
[343978860,1733168239634,-558.0,0.00036372,120]
[343978861,1733168239662,-500.0,0.00036372,120]
[343978862,1733168239690,-500.0,0.00036372,120]
[343978863,1733168239716,-500.0,0.00036372,120]
[343978864,1733168239742,-500.0,0.00036372,120]
[343978865,1733168239767,-500.0,0.00036372,120]
[343978866,1733168239797,-500.0,0.00036372,120]
[343978867,1733168239824,-500.0,0.00036372,120]
[343978868,1733168239850,-500.0,0.00036372,120]
[343978869,1733168239875,-500.0,0.00036372,120]
[343978870,1733168239901,-570.58,0.00036372,120]
[343978871,1733168239927,-500.0,0.00036372,120]
[343978872,1733168239952,-500.0,0.00036372,120]
[343978873,1733168239977,-500.0,0.00036372,120]
[343978874,1733168240003,-500.0,0.00036372,120]
[343978875,1733168240032,-500.0,0.00036372,120]
[343978876,1733168240057,-500.0,0.00036372,120]
[343978877,1733168240083,-500.0,0.00036372,120]
[343978878,1733168240108,-500.0,0.00036372,120]
[343978879,1733168240137,-500.0,0.00036372,120]
[343978880,1733168240163,-500.0,0.00036372,120]
[343978881,1733168240189,-500.0,0.00036372,120]
[343978882,1733168240216,-500.0,0.00036372,120]
[343978883,1733168240241,-500.0,0.00036372,120]
[343978884,1733168240268,-500.0,0.00036372,120]
[343978885,1733168240297,-500.0,0.00036372,120]
[343978886,1733168240323,-500.0,0.00036372,120]
[343978887,1733168240348,-500.0,0.00036372,120]
[343978888,1733168240374,-500.0,0.00036372,120]
[343978889,1733168240400,-500.0,0.00036372,120]
[343978890,1733168240425,-500.0,0.00036372,120]
[343978891,1733168240450,-500.0,0.00036372,120]
[343978892,1733168240475,-500.0,0.00036372,120]
[343978893,1733168240499,-541.91,0.00036372,120]
[343978894,1733168240525,-541.91,0.00036372,120]
[343978895,1733168240553,-541.91,0.00036372,120]
[343978896,1733168240578,-541.91,0.00036372,120]
[343978897,1733168240603,-541.91,0.00036372,120]
[343978898,1733168240627,-541.91,0.00036372,120]
[343978899,1733168240652,-541.91,0.00036372,120]
[343978900,1733168240677,-541.91,0.00036372,120]
[343978901,1733168240702,-541.91,0.00036372,120]
[343978902,1733168240727,-541.91,0.00036372,120]
[343978903,1733168240756,-541.91,0.00036372,120]
[343978904,1733168241093,-541.91,0.00036372,120]
[343978905,1733168241120,-541.91,0.00036372,120]
[343978906,1733168241152,-541.91,0.00036372,120]
[343978907,1733168241176,-541.91,0.00036372,120]
[343978908,1733168241202,-541.91,0.00036372,120]
[343978909,1733168241230,-541.91,0.00036372,120]
[343978910,1733168241256,-541.91,0.00036372,120]
[343978911,1733168241287,-541.91,0.00036372,120]
[343978912,1733168241313,-541.91,0.00036372,120]
[343978913,1733168241339,-541.91,0.00036372,120]
[343978914,1733168241366,-541.91,0.00036372,120]
[343978915,1733168241392,-541.91,0.00036372,120]
[343978916,1733168241421,-541.91,0.00036372,120]
[343978917,1733168241447,-20370.90911253,0.00036372,120]
[343978918,1733168241473,-141245.35494998,0.00036372,120]
[343978919,1733168241497,-150.0,0.00036372,120]
[343978920,1733168241522,-174.14264511,0.00036372,120]
[343978921,1733168241552,-770.47848187,0.00036372,120]
[343978922,1733168241577,-154.43918302,0.00036372,120]
[343978923,1733168241603,-171.57478863,0.00036372,60]
[343978924,1733168241628,-20011.02053049,0.00036372,120]
[343978925,1733168241653,-173.0,0.00036372,120]
[343978926,1733168241681,-1082.88051213,0.00036372,120]
[343978927,1733168241707,-260.01776169,0.00036372,90]
[343978928,1733168241736,-673.73955407,0.00036372,120]
[343978929,1733168241763,-195.47068944,0.00036372,120]
[343978930,1733168241794,-255.35020172,0.00036372,120]
[343978931,1733168241820,-256.39853333,0.00036372,120]
[343978932,1733168241845,-2312.25292414,0.00036372,120]
[343978933,1733168241871,-6402.40454543,0.00036372,120]
[343978934,1733168241897,-382.85620364,0.00036372,120]
[343978935,1733168241922,-213.45266847,0.00036372,120]
[343978936,1733168241947,-225.21595669,0.00036372,120]
[343978937,1733168241973,-5000.0,0.00036372,120]
[343978938,1733168241998,-299.0,0.00036372,120]
[343978939,1733168242024,-1000.0,0.00036372,120]
[343978940,1733168242051,-881.0,0.00036372,120]
[343978941,1733168242077,-1000.0,0.00036372,120]
[343978942,1733168242103,-1000.0,0.00036372,120]
[343978943,1733168242130,-101141.1954868,0.00036372,120]
[343978944,1733168242164,-3025.25322365,0.00036372,120]
[343978945,1733168242191,-1454.88882372,0.00036372,60]
[343978946,1733168242218,-1000.0,0.00036372,119]
[343978947,1733168242245,-2000.0,0.00036372,98]
[343978948,1733168242271,-2000.0,0.00036372,115]
[343978949,1733168242302,-2000.0,0.00036372,97]
[343978950,1733168242329,-2000.0,0.00036372,95]
[343978951,1733168242356,-13000.0,0.00036372,116]
[343978952,1733168242382,-200.0,0.00036372,68]
[343978953,1733168242409,-200.0,0.00036372,94]
[343978954,1733168242436,-900.0,0.00036372,110]
[343978955,1733168242461,-2358.0,0.00036372,60]
[343978956,1733168242487,-2372.31,0.00036372,68]
[343978957,1733168242515,-13476.21898986,0.00036372,120]
[343978958,1733168242546,-3596.58,0.00036372,60]
[343978959,1733168242577,-3596.58,0.00036372,60]
[343978960,1733168242606,-3596.58,0.00036372,60]
[343978961,1733168242634,-3596.58,0.00036372,60]
[343978962,1733168242661,-3596.58,0.00036372,60]
[343978963,1733168242687,-3596.58,0.00036372,60]
[343978964,1733168242714,-3596.58,0.00036372,60]
[343978965,1733168242740,-3596.58,0.00036372,60]
[343978966,1733168242766,-3596.58,0.00036372,60]
[343978967,1733168242795,-3596.58,0.00036372,60]
[343978968,1733168242821,-3596.58,0.00036372,60]
[343978969,1733168242847,-3596.58,0.00036372,60]
[343978970,1733168242874,-3596.58,0.00036372,60]
[343978971,1733168242900,-3596.58,0.00036372,60]
[343978972,1733168242926,-3596.58,0.00036372,60]
[343978973,1733168242952,-3596.58,0.00036372,60]
[343978974,1733168242976,-3596.58,0.00036372,60]
[343978975,1733168243003,-3596.58,0.00036372,60]
[343978976,1733168243028,-3596.58,0.00036372,60]
[343978977,1733168243056,-3596.58,0.00036372,60]
[343978978,1733168243084,-3596.58,0.00036372,60]
[343978979,1733168243112,-3596.58,0.00036372,60]
[343978980,1733168243142,-3596.58,0.00036372,60]
[343978981,1733168243170,-3596.63285033,0.00036372,60]
[343978982,1733168243199,-1545.0,0.00036372,120]
[343978983,1733168243228,-1077.79038473,0.00036372,120]
[343978984,1733168243255,-1917.6368652,0.00036372,120]
[343978985,1733168243283,-489.0,0.00036372,120]
[343978986,1733168243316,-1775.84104332,0.00036372,120]
[343978987,1733168243345,-15000.0,0.00036372,120]
[343978988,1733168243371,-10500.0,0.00036372,120]
[343978989,1733168243403,-10000.0,0.00036372,120]
[343978990,1733168243436,-592.06473744,0.00036372,120]
[343978991,1733168243464,-3120.0,0.00036372,120]
[343978992,1733168243492,-7210.62677629,0.00036372,120]
[343978993,1733168243519,-3563.81808216,0.00036372,120]
[343978994,1733168243550,-9002.20916522,0.00036372,120]
[343978995,1733168243575,-219.251662,0.00036372,60]
[343978996,1733168243602,-3333.0,0.00036372,120]
[343978997,1733168243628,-1079831.5562703,0.00036372,120]
[343978998,1733168243654,-481897.89796882,0.00036372,120]
[343978999,1733168243942,-747.17292639,0.00036372,120]
[343979000,1733168243969,-84318.57331619,0.00036372,120]
[343979001,1733168243995,-118252.13968834,0.00036372,120]
[343979002,1733168244020,-3391.25914818,0.00036372,120]
[343979003,1733168244048,-2034.75548891,0.00036372,120]
[343979004,1733168244075,-103592.03393516,0.00036372,120]
[343979005,1733168244102,-31077.61018056,0.00036372,120]
[343979006,1733168244136,-304.0,0.00036372,120]
[343979007,1733168244164,-4000.0,0.00036372,120]
[343979008,1733168244191,-1533.50779384,0.00036372,120]
[343979009,1733168244218,-20998.999986,0.00036372,120]
[343979010,1733168244245,-3979.18817692,0.00036372,120]
[343979011,1733168244272,-491.98652554,0.00036372,120]
[343979012,1733168252382,-166.0,0.00036372,30]
[343979013,1733168252407,-6070.66933288,0.00036372,30]
[343979014,1733168252431,-1010.65551975,0.00036372,30]
[343979015,1733168252456,-1000.0,0.00036372,30]
[343979016,1733168252483,-1000.0,0.00036372,30]
[343979017,1733168252507,-1000.0,0.00036372,30]
[343979018,1733168252533,-1000.0,0.00036372,30]
[343979019,1733168252560,-1000.0,0.00036372,30]
[343979020,1733168252586,-1000.0,0.00036372,30]
[343979021,1733168252611,-202.2,0.00036372,30]
[343979022,1733168252636,-202.2,0.00036372,30]
[343979023,1733168252660,-202.2,0.00036372,30]
[343979024,1733168252685,-1000.0,0.00036372,30]
[343979025,1733168252710,-1000.0,0.00036372,30]
[343979026,1733168252735,-1000.0,0.00036372,30]
[343979027,1733168252760,-1000.0,0.00036372,30]
[343979028,1733168252785,-1000.0,0.00036372,30]
[343979029,1733168253349,-1000.0,0.00036372,30]
[343979030,1733168253378,-1000.0,0.00036372,30]
[343979031,1733168253407,-1000.0,0.00036372,30]
[343979032,1733168253435,-1000.0,0.00036372,30]
[343979033,1733168253462,-1000.0,0.00036372,30]
[343979034,1733168253489,-1000.0,0.00036372,30]
[343979035,1733168253516,-1000.0,0.00036372,30]
[343979036,1733168253549,-1000.0,0.00036372,30]
[343979037,1733168253577,-1000.0,0.00036372,30]
[343979038,1733168253604,-1000.0,0.00036372,30]
[343979039,1733168253630,-622.34465962,0.00036372,30]
[343979040,1733168253656,-1500.0,0.00036372,30]
[343979041,1733168253681,-421.38296509,0.00036372,30]
[343979042,1733168253707,-5100.0,0.00036372,38]
[343979043,1733168253733,-2000.0,0.00036372,30]
[343979044,1733168253760,-1653.31412844,0.00036372,30]
[343979045,1733168253785,-5263.23707587,0.00036372,30]
[343979046,1733168253814,-295.96410043,0.00036372,30]
[343979047,1733168253841,-234.04098868,0.00036372,30]
[343979048,1733168253865,-236.3746297,0.00036372,30]
[343979049,1733168253891,-300.0,0.00036372,30]
[343979050,1733168253916,-206431.5643,0.00036372,30]
[343979051,1733168253941,-2316.0,0.00036372,40]
[343979052,1733168253967,-200.0,0.00036372,39]
[343979053,1733168253993,-200.0,0.00036372,31]
[343979054,1733168254018,-200.0,0.00036372,45]
[343979055,1733168254045,-200.0,0.00036372,35]
[343979056,1733168254070,-200.0,0.00036372,41]
[343979057,1733168254097,-150.0,0.00036372,39]
[343979058,1733168254124,-244.43506242,0.00036372,49]
[343979059,1733168254153,-202.2,0.00036372,30]
[343979060,1733168254180,-3323.7565278,0.00036372,30]
[343979061,1733168254208,-275120.40502709,0.00036372,30]
[343979062,1733168254236,-400000.0,0.00036372,30]
[343979063,1733168254264,-100000.0,0.00036372,30]
[343979064,1733168254295,-100000.0,0.00036372,31]
[343979065,1733168254326,-100000.0,0.00036372,32]
[343979066,1733168254356,-100000.0,0.00036372,33]
[343979067,1733168254385,-100000.0,0.00036372,34]
[343979068,1733168254414,-100000.0,0.00036372,35]
[343979069,1733168254442,-100000.0,0.00036372,36]
[343979070,1733168254471,-100000.0,0.00036372,37]
[343979071,1733168254497,-100000.0,0.00036372,38]
[343979072,1733168254524,-100000.0,0.00036372,39]
[343979073,1733168254554,-100000.0,0.00036372,30]
[343979074,1733168254581,-100000.0,0.00036372,31]
[343979075,1733168254608,-100000.0,0.00036372,32]
[343979076,1733168254634,-100000.0,0.00036372,33]
[343979077,1733168254661,-100000.0,0.00036372,34]
[343979078,1733168254687,-100000.0,0.00036372,35]
[343979079,1733168254712,-100000.0,0.00036372,36]
[343979080,1733168254738,-100000.0,0.00036372,37]
[343979081,1733168254764,-100000.0,0.00036372,38]
[343979082,1733168254792,-100000.0,0.00036372,39]
[343979083,1733168254817,-5100.0,0.00036372,39]
[343979084,1733168254842,-5000.0,0.00036372,31]
[343979085,1733168254867,-533.69541676,0.00036372,30]
[343979086,1733168254892,-36662.65390568,0.00036372,31]
[343979087,1733168254916,-248.38121418,0.00036372,30]
[343979088,1733168254941,-295.50548617,0.00036372,30]
[343979089,1733168254966,-16890.81965944,0.00036372,30]
[343979091,1733168261889,62397.49975001,0.00036372,60]
[343979092,1733168266218,-792982.84754326,0.00036372,30]
[343979093,1733168266247,-361423.42347659,0.00036372,30]
[343979094,1733168266273,-560.37969476,0.00036372,30]
[343979095,1733168266299,-63238.92998711,0.00036372,30]
[343979096,1733168266329,-88689.10476623,0.00036372,30]
[343979097,1733168266356,-2543.44436111,0.00036372,30]
[343979098,1733168266383,-77694.02545134,0.00036372,30]
[343979099,1733168266411,-1055.0,0.00036372,30]
[343979100,1733168266438,-1055.0,0.00036372,30]
[343979101,1733168266464,-1055.0,0.00036372,30]
[343979102,1733168266491,-1055.0,0.00036372,30]
[343979103,1733168266518,-1055.0,0.00036372,30]
[343979104,1733168266545,-1055.0,0.00036372,30]
[343979105,1733168266584,-1055.0,0.00036372,30]
[343979106,1733168266612,-1055.0,0.00036372,30]
[343979107,1733168266639,-1055.0,0.00036372,30]
[343979108,1733168266665,-1055.0,0.00036372,30]
[343979109,1733168266696,-1055.0,0.00036372,30]
[343979110,1733168266723,-1055.0,0.00036372,30]
[343979111,1733168266749,-1055.0,0.00036372,30]
[343979112,1733168266777,-1055.0,0.00036372,30]
[343979113,1733168266811,-1055.0,0.00036372,30]
[343979114,1733168266837,-1055.0,0.00036372,30]
[343979115,1733168266863,-1055.0,0.00036372,30]
[343979116,1733168266889,-1055.0,0.00036372,30]
[343979117,1733168266916,-1055.0,0.00036372,30]
[343979118,1733168266944,-1055.0,0.00036372,30]
[343979119,1733168266971,-1055.0,0.00036372,30]
[343979120,1733168266998,-1055.0,0.00036372,30]
[343979121,1733168267024,-1055.0,0.00036372,30]
[343979122,1733168267053,-1055.0,0.00036372,30]
[343979123,1733168267084,-1055.0,0.00036372,30]
[343979124,1733168267112,-1055.0,0.00036372,30]
[343979125,1733168267143,-1055.0,0.00036372,30]
[343979126,1733168267172,-1184.84751995,0.00036372,30]
[343979127,1733168267203,-1150.13084535,0.00036372,30]
[343979128,1733168267231,-501.596747,0.00036372,30]
[343979129,1733168267261,-1000.0,0.00036372,30]
[343979130,1733168267290,-1000.0,0.00036372,30]
[343979131,1733168267322,-1000.0,0.00036372,30]
[343979132,1733168267351,-1000.0,0.00036372,30]
[343979133,1733168267379,-1000.0,0.00036372,30]
[343979134,1733168267405,-1000.0,0.00036372,30]
[343979135,1733168267433,-1000.0,0.00036372,30]
[343979136,1733168267460,-1000.0,0.00036372,30]
[343979137,1733168267486,-1000.0,0.00036372,30]
[343979138,1733168267512,-1000.0,0.00036372,30]
[343979139,1733168267538,-1000.0,0.00036372,30]
[343979140,1733168267566,-1000.0,0.00036372,30]
[343979141,1733168267593,-1000.0,0.00036372,30]
[343979142,1733168267621,-1000.0,0.00036372,30]
[343979143,1733168267647,-1000.0,0.00036372,30]
[343979144,1733168267672,-1000.0,0.00036372,30]
[343979145,1733168267699,-1000.0,0.00036372,30]
[343979146,1733168267725,-1000.0,0.00036372,30]
[343979147,1733168267751,-1000.0,0.00036372,30]
[343979148,1733168267778,-1000.0,0.00036372,30]
[343979149,1733168267807,-1000.0,0.00036372,30]
[343979150,1733168267837,-1000.0,0.00036372,30]
[343979151,1733168267865,-1000.0,0.00036372,30]
[343979152,1733168267891,-1000.0,0.00036372,30]
[343979153,1733168267918,-1000.0,0.00036372,30]
[343979154,1733168267947,-1193.897401,0.00036372,30]
[343979155,1733168267975,-158.782971,0.00036372,40]
[343979156,1733168268003,-158.782971,0.00036372,40]
[343979157,1733168268040,-368.98989413,0.00036372,30]
[343979158,1733168268071,-250.0,0.00036372,30]
[343979159,1733168268100,-250.0,0.00036372,30]
[343979160,1733168268129,-250.0,0.00036372,30]
[343979161,1733168268163,-250.0,0.00036372,30]
[343979162,1733168268193,-250.0,0.00036372,30]
[343979163,1733168268227,-250.0,0.00036372,30]
[343979164,1733168268258,-250.0,0.00036372,30]
[343979165,1733168268288,-250.0,0.00036372,30]
[343979166,1733168268319,-339.450006,0.00036372,30]
[343979167,1733168270464,643.877,0.00036372,30]
[343979170,1733168270734,643.91319,0.00036372,30]
[343979171,1733168270891,643.33,0.00036372,30]
[343979172,1733168271101,643.23,0.00036372,30]
[343979173,1733168271335,643.1,0.00036372,30]
[343979174,1733168271938,643.88,0.00036372,30]
[343979175,1733168272047,643.0007,0.00036372,30]
[343979176,1733168272281,643.4,0.00036372,30]
[343979177,1733168272438,643.812,0.00036372,30]
[343979178,1733168272505,643.24,0.00036372,30]
[343979179,1733168273011,643.7,0.00036372,30]
[343979180,1733168273195,536.127,0.00036372,30]
[343979181,1733168303573,250.0,6.843e-05,2]
[343979182,1733168303699,629.34,6.843e-05,2]
[343979184,1733168387371,23900.0,6.856e-05,2]
[343979185,1733168394078,1004.03,6.862e-05,2]
[343979187,1733168452909,319.13,6.875e-05,2]
[343979188,1733168620397,500.0,6.82e-05,2]
[343979189,1733168645932,250.0,7.163e-05,2]
[343979190,1733168674338,4664.44,6.875e-05,2]
[343979191,1733168701285,818.3,6.891e-05,2]
[343979192,1733168849311,400.0,7e-05,2]
[343979193,1733168852160,800.0,7.1e-05,2]
[343979200,1733168979194,600.0,7e-05,2]
[343979201,1733168981304,1200.0,7.1e-05,2]
[343979202,1733169031760,-176.34,7.181e-05,2]
[343979203,1733169031770,-973.66,7.2e-05,2]
[343979204,1733169031781,-326.34,7.2e-05,2]
[343979205,1733169031790,-182.88801043,7.2e-05,2]
[343979206,1733169031875,-1617.11198957,7.2e-05,2]
[343979207,1733169031884,-300.0,7.299e-05,2]
[343979208,1733169031894,-1700.0,7.3e-05,2]
[343979209,1733169031903,-2400.0,7.3e-05,2]
[343979210,1733169031913,-2100.0,7.4e-05,2]
[343979211,1733169031922,-1050.0,7.4e-05,2]
[343979212,1733169031934,-3000.0,7.4e-05,2]
[343979213,1733169031943,-400.0,7.5e-05,2]
[343979214,1733169031952,-600.0,7.5e-05,2]
[343979215,1733169031962,-500.0,7.507e-05,2]
[343979216,1733169031972,-150.0,7.562e-05,2]
[343979217,1733169031981,-127.00031043,7.576e-05,2]
[343979218,1733169031993,-49.33968957,7.576e-05,2]
[343979219,1733169032002,-344.18486119,7.598e-05,2]
[343979220,1733169032014,-2155.81513881,7.598e-05,2]
[343979221,1733169032023,-400.0,7.6e-05,2]
[343979222,1733169032032,-600.0,7.6e-05,2]
[343979223,1733169032042,-1053.0,7.671e-05,2]
[343979224,1733169032051,-500.0,7.673e-05,2]
[343979225,1733169032060,-501.14363931,7.673e-05,2]
[343979226,1733169032070,-500.0,7.673e-05,2]
[343979227,1733169032079,-500.0,7.673e-05,2]
[343979228,1733169032089,-399.55928,7.673e-05,2]
[343979229,1733169032099,-500.0,7.673e-05,2]
[343979230,1733169032108,-150.0,7.697e-05,2]
[343979231,1733169032117,-552.40686528,7.697e-05,2]
[343979232,1733169032126,-200.0,7.698e-05,2]
[343979233,1733169032136,-2321.569,7.698e-05,2]
[343979234,1733169032145,-175.356,7.698e-05,2]
[343979235,1733169032154,-148104.388562,7.698e-05,2]
[343979236,1733169034343,-1632.45000001,7.698e-05,2]
[343979249,1733169037720,-1406.17517403,7.698e-05,2]
[343979252,1733169037733,-2439.0256075,7.698e-05,2]
[343979253,1733169037747,-3264.13760739,7.698e-05,2]
[343979254,1733169037760,-54052.28924059,7.698e-05,2]
[343979255,1733169037772,-10258.20009994,7.698e-05,2]
[343979256,1733169037890,-500.0,7.698e-05,2]
[343979257,1733169037902,-1317.46190867,7.698e-05,2]
[343979258,1733169037913,-3272.3,7.698e-05,2]
[343979260,1733169038000,-743.65999995,7.698e-05,2]
[343979262,1733169038011,-952.54248781,7.698e-05,2]
[343979263,1733169038022,-21189.30647752,7.698e-05,2]
[343979492,1733169040260,-5095.651844,7.698e-05,2]
[343979494,1733169040271,-1434.0226856,7.698e-05,2]
[343979496,1733169040281,-368.5872692,7.698e-05,2]
[343979498,1733169040292,-4338.33734001,7.698e-05,2]
[343979500,1733169040304,-4051.61921505,7.698e-05,2]
[343979503,1733169040315,-1509.72970367,7.698e-05,2]
[343979519,1733169040468,-603101.01477706,7.698e-05,2]
[343979521,1733169040478,-659.751,7.698e-05,2]
[343979523,1733169040488,-1991.7878809,7.699e-05,2]
[343979525,1733169040497,-1172463.49137589,7.7e-05,2]
[343979527,1733169040509,-29505.46692932,7.7e-05,2]
[343979529,1733169040520,-5005.30486166,7.7e-05,2]
[343979760,1733169042696,-775.62596767,7.7e-05,2]
[343979775,1733169042788,-309.72229636,7.7e-05,2]
[343979777,1733169042800,-3042.216401,7.7e-05,2]
[343979780,1733169042812,-36649.36115,7.7e-05,2]
[343979782,1733169042823,-1126.45674495,7.7e-05,2]
[343979788,1733169042879,-28327.88011897,7.7e-05,2]
[343979790,1733169042891,-6140.32,7.7e-05,2]
[343979792,1733169042903,-558.48,7.7e-05,2]
[343979794,1733169042914,-20673.92506349,7.7e-05,2]
[343979799,1733169042964,-6775.93741236,7.7e-05,2]
[343979801,1733169042975,-2771.46280152,7.7e-05,2]
[343980287,1733169053258,-6972867.47115066,7.7e-05,2]
[343980288,1733169053268,-2519.12,7.7e-05,2]
[343980289,1733169053278,-508.491,7.7e-05,2]
[343980290,1733169053288,-432.3382477,7.7e-05,2]
[343980291,1733169053298,-432.3382477,7.7e-05,2]
[343980292,1733169053307,-400.0,7.7e-05,2]
[343980293,1733169053317,-150.0,7.7e-05,2]
[343980294,1733169053327,-150.0,7.7e-05,2]
[343980295,1733169053336,-432.09994361,7.7e-05,2]
[343980296,1733169053346,-150.0,7.7e-05,2]
[343980297,1733169053355,-16934.80050732,7.7e-05,2]
[343980298,1733169053364,-1241.7560856,7.7e-05,2]
[343980299,1733169053374,-4691.34975946,7.7e-05,2]
[343980300,1733169053383,-600.0,7.7e-05,2]
[343980301,1733169053394,-259.75049608,7.7e-05,2]
[343980302,1733169053403,-600.0,7.7e-05,2]
[343980303,1733169053416,-600.0,7.7e-05,2]
[343980304,1733169053426,-849.460523,7.7e-05,2]
[343980305,1733169053435,-500.0,7.726e-05,2]
[343980306,1733169053449,-500.0,7.726e-05,2]
[343980307,1733169053460,-818.3,7.752e-05,2]
[343980308,1733169053470,-166.66,7.756e-05,2]
[343980309,1733169053481,-400.0,7.8e-05,2]
[343980310,1733169053492,-600.0,7.8e-05,2]
[343980311,1733169053502,-223.0,7.82e-05,2]
[343980312,1733169053512,-625.0,7.82e-05,2]
[343980313,1733169053522,-1185.4807862,7.85e-05,2]
[343980314,1733169053532,-4691.34975945,7.85e-05,2]
[343980315,1733169053542,-259.75049607,7.85e-05,2]
[343980316,1733169053552,-4815.51296722,7.9e-05,2]
[343980317,1733169053562,-1111.0,7.9e-05,2]
[343980318,1733169053572,-771.0,7.9e-05,2]
[343980319,1733169053582,-700.0,7.9e-05,2]
[343980320,1733169053592,-5233.0,7.91e-05,2]
[343980321,1733169053602,-2222.0,7.92e-05,2]
[343980322,1733169053612,-490.0,7.945e-05,2]
[343980323,1733169053622,-961.0,7.945e-05,2]
[343980324,1733169053631,-18574.0,7.95e-05,2]
[343980325,1733169053641,-176.34,7.971e-05,2]
[343980326,1733169053651,-236323.35360563,7.98e-05,2]
[343980327,1733169053660,-172.56525,7.98e-05,2]
[343980328,1733169053670,-8500.0,7.982e-05,2]
[343980329,1733169053680,-5800.0,7.983e-05,2]
[343980330,1733169053693,-5800.0,7.983e-05,2]
[343980331,1733169053702,-76997.86091216,7.99e-05,2]
[343980332,1733169053712,-8500.0,7.991e-05,2]
[343980333,1733169053722,-8500.0,7.991e-05,2]
[343980334,1733169053731,-5800.0,7.992e-05,2]
[343980335,1733169053742,-5800.0,7.992e-05,2]
[343980336,1733169053751,-5800.0,7.992e-05,2]
[343980337,1733169053761,-150.0,7.998e-05,2]
[343980338,1733169053771,-150.0,7.998e-05,2]
[343980339,1733169053780,-150.0,7.998e-05,2]
[343980340,1733169053789,-150.0,7.998e-05,2]
[343980341,1733169053799,-150.0,7.998e-05,2]
[343980342,1733169053808,-150.0,7.998e-05,2]
[343980343,1733169053818,-150.0,7.998e-05,2]
[343980344,1733169053828,-150.0,7.998e-05,2]
[343980345,1733169053838,-150.0,7.998e-05,2]
[343980346,1733169053847,-150.0,7.998e-05,2]
[343980347,1733169053858,-150.0,7.998e-05,2]
[343980348,1733169053868,-2000.0,7.999e-05,2]
[343980349,1733169053878,-2000.0,7.999e-05,2]
[343980350,1733169053887,-2000.0,7.999e-05,2]
[343980351,1733169053897,-2000.0,7.999e-05,2]
[343980352,1733169053906,-2000.0,7.999e-05,2]
[343980353,1733169053916,-2000.0,7.999e-05,2]
[343980354,1733169053926,-2000.0,7.999e-05,2]
[343980355,1733169053936,-2000.0,7.999e-05,2]
[343980356,1733169053952,-2000.0,7.999e-05,2]
[343980357,1733169053964,-2000.0,7.999e-05,2]
[343980358,1733169053974,-2000.0,7.999e-05,2]
[343980359,1733169053984,-19539.27281678,7.999e-05,2]
[343980360,1733169053994,-150.0,7.999e-05,2]
[343980361,1733169054004,-150.0,7.999e-05,2]
[343980362,1733169054014,-500.0,7.999e-05,2]
[343980363,1733169054024,-150.0,7.999e-05,2]
[343980364,1733169054034,-2075.0,7.999e-05,2]
[343980365,1733169054045,-500.0,7.999e-05,2]
[343980366,1733169054055,-150.0,7.999e-05,2]
[343980367,1733169054066,-150.0,7.999e-05,2]
[343980368,1733169054077,-161.58981485,7.999e-05,2]
[343980369,1733169054087,-150.0,7.999e-05,2]
[343980370,1733169054097,-150.0,7.999e-05,2]
[343980371,1733169054107,-500.0,7.999e-05,2]
[343980372,1733169054285,-243.85348362,7.999e-05,2]
[343980373,1733169054297,-500.0,7.999e-05,2]
[343980374,1733169054307,-222.83633526,7.999e-05,2]
[343980375,1733169054317,-161.94590094,7.999e-05,2]
[343980376,1733169054327,-150.0,7.999e-05,2]
[343980377,1733169054337,-15813.21,7.999e-05,2]
[343980378,1733169054346,-23811866.47173533,8e-05,2]
[343980379,1733169054356,-957823.81072649,8e-05,2]
[343980380,1733169054365,-1483165.26261916,8e-05,2]
[343980381,1733169054375,-2000.0,8e-05,2]
[343980382,1733169054384,-8216213.21312187,8e-05,2]
[343980383,1733169054394,-3559286.88283655,8e-05,2]
[343980384,1733169054409,-10175738.76198618,8e-05,2]
[343980385,1733169054418,-6566926.21840757,8e-05,2]